Cogmind - Beta 12 @@@ ROGUE MODE // 2023.05.13 @ 18:56:08 Player: Ms. V3-11A Result: Destroyed by 8R-AWN with 8R-AWN's Boregun Performance ------------- Evolutions (1) 500 Regions Visited (4) 800 Robots Destroyed (69) 345 Value Destroyed (1574) 1574 Prototype IDs (2) 40 Alien Tech Used (0) 0 Bonus (-217) -217 TOTAL SCORE: 3042 Bonus ------- Friendly Fire -217 Cogmind --------- Core Integrity 0/400 Matter 178/300 Energy 265/265 System Corruption 1% Temperature Cool (3) Movement Treading (320) Ox2 Location -9/Exiles Parts ------- > --- POWER (1) -------- Improved Ion Engine > --- PROPULSION (3) --- Light Treads > --- UTILITY (3) ------ High-capacity Storage Unit Core Shielding > --- WEAPON (2) ------- Minigun Minigun > --- INVENTORY (20) --- Aluminum Leg Carbon-fiber Leg Cooling System Cooling System Cooling System Medium Storage Unit High-capacity Matter Pod (200) High-capacity Matter Pod (200) Improved Targeting Computer Shield Generator Thief Drone Bay (3/3) Beam Rifle Beam Rifle Beamcaster Minigun Minigun Grenade Launcher Rocket Launcher Peak State ------------ > --- POWER ------------ Cooled Ion Engine > --- PROPULSION ------- Light Treads Light Treads Light Treads > --- UTILITY ---------- Cooling System High-capacity Storage Unit Thief Drone Bay > --- WEAPON ----------- Beam Rifle Beam Rifle > --- INVENTORY -------- Light Treads Light Treads Light Treads Cooling System Cooling System Cooling System Medium Storage Unit Medium Matter Pod Large Matter Pod Improved Targeting Computer EM Pulse Gun Beam Rifle Beam Rifle Beamcaster Minigun Minigun Minigun Minigun Grenade Launcher Rocket Launcher [Rating: 23] Favorites ----------- Power Cooled Ion Engine Engine Cooled Ion Engine Propulsion Light Treads Treads Light Treads Leg Aluminum Leg Utility High-capacity Storage Unit Device Cooling System Storage High-capacity Storage Unit Processor Targeting Computer Protection Hardened Light Armor Plating Weapon Beam Rifle Energy Gun Beam Rifle Ballistic Gun Assault Rifle Launcher Grenade Launcher Build | -11 -10 -9 -9 -9 ------- Run | Jun Mat Mat Min Exi Slots Evolved 2 | . . 2 . . Power . | . . . . . Propulsion 1 | . . 1 . . Utility 1 | . . 1 . . Weapon . | . . . . . Parts Attached 57 | 2 13 22 12 8 Power 4 | 1 . 2 . 1 Engine 4 | 1 . 2 . 1 Core . | . . . . . Reactor . | . . . . . Propulsion 12 | . 2 7 3 . Treads 12 | . 2 7 3 . Leg . | . . . . . Wheel . | . . . . . Hover . | . . . . . Flight . | . . . . . Utility 14 | . 4 5 4 1 Device 4 | . 1 1 2 . Storage 2 | . 2 . . . Processor 1 | . 1 . . . Hackware . | . . . . . Protection 7 | . . 4 2 1 Artifact . | . . . . . Weapon 27 | 1 7 8 5 6 Energy Gun 10 | . 1 4 3 2 Energy Cannon . | . . . . . Ballistic Gun 10 | 1 3 3 . 3 Ballistic Cannon . | . . . . . Launcher 7 | . 3 1 2 1 Special Weapon . | . . . . . Impact Weapon . | . . . . . Slashing Weapon . | . . . . . Piercing Weapon . | . . . . . Special Melee Weapon . | . . . . . Unidentified Prototypes 2 | . . 1 1 . Parts Lost 15 | . 3 5 3 4 Power 2 | . . 1 . 1 Propulsion 8 | . 2 2 2 2 Utility 4 | . 1 2 . 1 Weapon 1 | . . . 1 . Highest Loss Streak 4 | . 1 2 1 4 To Critical Strikes 3 | . . 1 1 1 Average Slot Usage (%) 94 | . 96 98 99 80 Engine 11 | . 14 10 11 11 Treads 27 | . 7 32 32 32 Leg 4 | . 18 . . . Device 10 | . 10 11 11 10 Storage 11 | . 14 11 11 11 Protection 8 | . . 9 11 11 Energy Gun 13 | . 9 17 21 1 Ballistic Gun 5 | . 14 4 . 2 Launcher 1 | . 4 . . . Naked Turns . | . . . . . Heaviest Build 63 | 14 50 63 62 61 Greatest Support 60 | 20 40 60 60 60 Greatest Overweight (x) 2 | . 2 1 1 1 Average Overweight (x) . | . . . . . Largest Inventory Capacity 20 | 8 20 20 20 20 Average Capacity 17 | 8 10 20 20 20 Most Carried 20 | 5 10 20 20 20 Average Carried 16 | 4 8 18 19 19 Final Capacity 20 | 8 20 20 20 20 Final Carried 20 | 4 9 19 20 18 Class Distribution -------------------- 93% | Mutant 6% | Scavenger-Mutant Dominant Class ---------------- Mutant | -10/Materials Mutant | -9/Materials Mutant | -9/Mines Mutant | -9/Exiles Resources | -11 -10 -9 -9 -9 ----------- Run | Jun Mat Mat Min Exi Matter Collected 1748 | 220 261 860 187 220 Remotely . | . . . . . Salvage Created 2000 | . 477 1187 315 21 Parts 131 | . 41 60 30 . Haulers Intercepted 3 | . 1 2 . . Recyclers Shooed 3 | . . 3 . . Parts Field Recycled . | . . . . . Retrieved Matter . | . . . . . Parts Self-Destructed . | . . . . . Prevented . | . . . . . Kills | -11 -10 -9 -9 -9 ------- Run | Jun Mat Mat Min Exi Combat Hostiles Destroyed 53 | . 14 20 12 7 Guns 32 | . 8 20 4 . AOE 20 | . 6 . 7 7 Classes Destroyed 12 | . 7 3 1 1 Worker 6 | . 3 2 1 . Builder 3 | . 2 1 . . Tunneler 2 | . 1 . 1 . Hauler 3 | . 1 2 . . Recycler 3 | . . 3 . . Operator 2 | . 1 1 . . Watcher 3 | . . 3 . . Swarmer 19 | . 6 6 7 . Grunt 21 | . 8 9 4 . Duelist 1 | . . . 1 . Sentry 5 | . . 5 . . Assembled 7 | . . . . 7 Thug 1 | . . . 1 . Best Kill Streak 9 | . 9 4 5 7 Combat Bots Only 7 | . 6 4 4 7 Max Kills in Single Turn 4 | . 2 1 4 4 Gunslinging . | . . . . . Exploded 4 | . 2 . 3 4 Melee . | . . . . . Uniques/NPCs Destroyed . | . . . . . Combat | -11 -10 -9 -9 -9 -------- Run | Jun Mat Mat Min Exi Damage Taken 3313 | . 674 1281 435 923 Core 529 | . 117 159 41 212 Absorbed by Shields . | . . . . . Redirected to Shielding 23 | . . . . 23 Core Remaining (%) 76 | 100 53 . . . Volleys Fired 245 | . 63 106 47 29 Largest 2 | . 2 2 2 2 Hottest 112 | . 70 112 112 50 Shots Fired 455 | . 105 204 90 56 Gun 421 | . 84 199 86 52 Cannon . | . . . . . Launcher 34 | . 21 5 4 4 Special . | . . . . . Kinetic 139 | . 54 34 . 51 Thermal 282 | . 30 165 86 1 Explosive 34 | . 21 5 4 4 Electromagnetic . | . . . . . Robot Hit Streak 14 | . 10 13 14 8 Robot Miss Streak 5 | . 4 5 3 2 Penetration Max . | . . . . . Secondary Targets 6 | . 2 3 1 . Max Gunslinging Chain 1 | . 1 1 1 . Shots Hit Robots 252 | . 57 119 37 39 Core Hits 125 | . 38 47 25 15 Critical Kills . | . . . . . Critical Parts Destroyed . | . . . . . Critical Strikes 12 | . 1 7 4 . Burn 12 | . 1 7 4 . Melee Attacks . | . . . . . Impact . | . . . . . Slashing . | . . . . . Piercing . | . . . . . Sneak Attacks . | . . . . . Combat Hostiles . | . . . . . Follow-up Attacks . | . . . . . Damage Inflicted 5366 | . 1413 1928 978 1047 Guns 3707 | . 717 1830 519 641 Cannons . | . . . . . Explosions 1634 | . 696 77 455 406 Melee . | . . . . . Ramming 25 | . . 21 4 . Kinetic 1628 | . 514 473 . 641 Thermal 2176 | . 300 1357 519 . Explosive 1537 | . 599 77 455 406 Electromagnetic . | . . . . . Impact . | . . . . . Slashing . | . . . . . Piercing . | . . . . . Highest Corruption 1 | . . 1 1 1 Average Corruption 1 | . . 1 1 1 Corruption Purged . | . . . . . Corruption Blocked . | . . . . . Effects 28 | . . 10 10 8 Message Errors 8 | . . 2 3 3 Matter Fused 7 | . . 2 3 2 Heat Flow Errors 1 | . . . 1 . Energy Discharges 3 | . . 2 1 . Parts Rejected 1 | . . 1 . . Data Loss (minor) 3 | . . 2 . 1 Data Loss (major) 2 | . . 1 1 . Misfires 3 | . . . 1 2 Overload Shots . | . . . . . Overflow Damage 14 | . 11 . . 3 Projectiles . | . . . . . Explosions 14 | . 11 . . 3 Melee . | . . . . . Knockbacks . | . . . . . Impact . | . . . . . Kinetic . | . . . . . Secondary . | . . . . . Self-Inflicted Damage 104 | . 84 . . 20 Shots 5 | . 4 . . 1 Rammed 3 | . . 2 1 . Targets Rammed 3 | . . 2 1 . Kicked . | . . . . . Crushed . | . . . . . Highest Temperature 165 | . 7 165 82 32 Average Temperature 30 | . 2 36 14 9 Received Heat Transfer 789 | . 249 402 138 . Siege Activations . | . . . . . Robots Corrupted . | . . . . . Combat Hostiles . | . . . . . Parts Fried . | . . . . . Impact Corruptions . | . . . . . Robots Melted 1 | . . . 1 . Combat Hostiles 1 | . . . 1 . Parts Melted 16 | . 2 12 2 . Heat Transferred 6340 | . 716 3996 1628 . Parts Sabotaged . | . . . . . Parts Stolen . | . . . . . Parts Stripped . | . . . . . Power Chain Reactions . | . . . . . Missiles Intercepted . | . . . . . Alert | -11 -10 -9 -9 -9 ------- Run | Jun Mat Mat Min Exi Peak Influence 456 | . 456 336 272 . Initial 127 | . . 118 127 . Average 189 | . 194 209 157 . Maximum Alert Level 2 | . 2 1 1 . Low Security (%) 57 | 100 59 39 81 . Level 1 38 | . 24 60 18 . Level 2 4 | . 15 . . . Level 3 . | . . . . . Level 4 . | . . . . . Level 5 . | . . . . . High Security . | . . . . . Max Security . | . . . . . Squads Dispatched 4 | . 2 2 . . Investigation 1 | . 1 . . . Extermination . | . . . . . Reinforcement 3 | . 1 2 . . Assault . | . . . . . Garrison . | . . . . . Intercept . | . . . . . Searches Triggered . | . . . . . Construction Impeded . | . . . . . Haulers Reinforced . | . . . . . Active Scanning Responses . | . . . . . Cargo Convoy Interrupts . | . . . . . Stealth | -11 -10 -9 -9 -9 --------- Run | Jun Mat Mat Min Exi Distress Signals 4 | . 3 1 . . Communications Jammed . | . . . . . Distress Signals . | . . . . . Times Spotted 74 | . 25 31 10 8 Peak Tracking Total 9 | . 3 6 4 9 Tactical Retreats 2 | . 1 1 . . Traps | -11 -10 -9 -9 -9 ------- Run | Jun Mat Mat Min Exi Traps Triggered 3 | . 1 2 . . Indirectly . | . . . . . Trap Hack Attempts . | . . . . . Triggered . | . . . . . Disarmed . | . . . . . Reprogrammed . | . . . . . Reused . | . . . . . Traps Extracted . | . . . . . Installed . | . . . . . Triggered . | . . . . . Machines | -11 -10 -9 -9 -9 ---------- Run | Jun Mat Mat Min Exi Machines Disabled 27 | . 14 4 6 3 Max in Single Turn 4 | . 4 2 1 2 Machines Repaired . | . . . . . Machines Sabotaged . | . . . . . Overloaded Fab Kills . | . . . . . Hacking | -11 -10 -9 -9 -9 --------- Run | Jun Mat Mat Min Exi Machines Accessed 9 | . 5 2 1 1 Terminals 7 | . 5 2 . . Fabricators . | . . . . . Repair Stations . | . . . . . Recycling Units . | . . . . . Scanalyzers . | . . . . . Garrison Access . | . . . . . Total Hacks 17 | . 11 4 1 1 Successful 3 | . 1 . 1 1 Failed 14 | . 10 4 . . Catastrophic 1 | . . 1 . . Database Lockouts . | . . . . . Manual 2 | . 2 . . . Terminals 15 | . 11 4 . . Fabricators . | . . . . . Repair Stations . | . . . . . Recycling Units . | . . . . . Scanalyzers . | . . . . . Garrison Access . | . . . . . Terminal Hacks 3 | . 1 . 1 1 Record 1 | . . . . 1 Open Door 1 | . . . 1 . Unreport Threat 1 | . 1 . . . Fabricator Hacks . | . . . . . Repair Station Hacks . | . . . . . Recycling Unit Hacks . | . . . . . Scanalyzer . | . . . . . Garrison Access Hacks . | . . . . . Unauthorized Hacks . | . . . . . Terminals . | . . . . . Fabricators . | . . . . . Repair Stations . | . . . . . Recycling Units . | . . . . . Scanalyzers . | . . . . . Garrison Access . | . . . . . Data Cores Recovered . | . . . . . Used . | . . . . . Hacking Detections 7 | . 5 2 . . Full Trace Events . | . . . . . Feedback Events . | . . . . . Feedback Blocked . | . . . . . Robot Schematics Acquired . | . . . . . Robots Built . | . . . . . Authchips . | . . . . . Time . | . . . . . Total Robot Build Rating . | . . . . . Part Schematics Acquired . | . . . . . Parts Built . | . . . . . Authchips . | . . . . . Time . | . . . . . Total Part Build Rating . | . . . . . Parts Repaired . | . . . . . Time . | . . . . . Parts Recycled . | . . . . . Recycled Matter . | . . . . . Retrieved Matter . | . . . . . Retrieved Components . | . . . . . Parts Scanalyzed . | . . . . . Part Schematics Acquired . | . . . . . Parts Damaged . | . . . . . Bothacking | -11 -10 -9 -9 -9 ------------ Run | Jun Mat Mat Min Exi Used RIF Installer . | . . . . . Robots Hacked . | . . . . . Non-combat . | . . . . . Combat . | . . . . . Robot Hacks Applied . | . . . . . Relay Couplers Released . | . . . . . Fabnet Peak Effective % . | . . . . . Robots Rewired . | . . . . . Allies Hacked . | . . . . . Hacks Repelled . | . . . . . Allies | -11 -10 -9 -9 -9 -------- Run | Jun Mat Mat Min Exi Total Allies . | . . . . . Largest Group . | . . . . . Highest-Rated Group . | . . . . . Highest-Rated Ally . | . . . . . Total Orders . | . . . . . Ally Attacks . | . . . . . Total Damage . | . . . . . Kills . | . . . . . Allies Corrupted . | . . . . . Allies Melted . | . . . . . Intel | -11 -10 -9 -9 -9 ------- Run | Jun Mat Mat Min Exi Robot Analysis Total . | . . . . . Derelict Logs Recovered 2 | . . . 2 . Drone Launches . | . . . . . Drone Recoveries . | . . . . . Exploration | -11 -10 -9 -9 -9 ------------- Run | Jun Mat Mat Min Exi Turns Passed 5337 | 12 1150 1774 1234 1167 Spaces Moved 2450 | 7 558 747 495 643 Core . | . . . . . Treads 2033 | . 148 747 495 643 Legs 417 | 7 410 . . . Wheels . | . . . . . Hover . | . . . . . Flight . | . . . . . Fastest Speed 120 | 120 120 160 160 160 Average Speed 178 | 120 149 185 214 168 Slowest Speed 260 | 120 260 240 240 240 Overloaded Moves . | . . . . . Propulsion Burnouts . | . . . . . Robots Hopped . | . . . . . Cave-ins Triggered . | . . . . . Exploration Rate (%) 59 | 2 84 53 68 90 Regions Visited 4 Branch Regions 2 Pre-discovered Areas 3 | . . . 2 1 Known Exits Taken . | . . . . . Unknown Exits Taken 4 | 1 1 1 1 . Scrap Searched 2 | . . . 2 . Spaces Dug 7 | . 7 . . . Terrain Destroyed 204 | . 133 27 22 22 Melee . | . . . . . Projectile . | . . . . . AOE 204 | . 133 27 22 22 Terrain Rammed . | . . . . . Walls Destroyed . | . . . . . Machines Disabled . | . . . . . Actions | -11 -10 -9 -9 -9 --------- Run | Jun Mat Mat Min Exi Total 2982 | 10 764 939 582 687 Wait 151 | . 120 27 4 . Move 2446 | 6 557 746 494 643 Hop . | . . . . . Pick Up 42 | . 8 20 12 2 Fast Attach 14 | . 3 7 2 2 Attach 10 | . 2 4 3 1 Detach 2 | . . 2 . . Swap 33 | 2 8 11 7 5 Drop 36 | 2 3 14 12 5 Fire 245 | . 63 106 47 29 Melee . | . . . . . Ram . | . . . . . Kick . | . . . . . Crush 3 | . . 2 1 . Escape Stasis . | . . . . . Rewire . | . . . . . Trap . | . . . . . Miscellaneous . | . . . . . Route ------- -11/Junkyard -10/Materials (discovered 3 exits: *Mat x2 / [*Min]) -9/Materials (discovered 3 exits: [*Mat x2] / *Min) -9/Mines (discovered 2 exits: [*Mat] / *Exi) -9/Exiles (discovered 2 exits: [*Min x2]) History --------- Turn | Location | Event 5 | -11/Junkyard | Discovered new exit (range 2) 13 | -11/Junkyard | Entered Materials 226 | -10/Materials | Discovered new exit (range 9) 332 | -10/Materials | Build established: Mutant 430 | -10/Materials | Discovered new exit (range 15) 1089 | -10/Materials | Discovered new exit (range 15) 1163 | -10/Materials | Entered another Materials area 1163 | -9/Materials | Evolved 2 slots: Propulsion x1, Utility x1 1507 | -9/Materials | Discovered new exit (range 11) 1941 | -9/Materials | Discovered new exit (range 13) 2170 | -9/Materials | Discovered new exit (range 12) 2937 | -9/Materials | Entered Mines 2943 | -9/Mines | Found the Drone Emporium 2971 | -9/Mines | Found Prototype Device 2971 | -9/Mines | Identified Thief Drone Bay 3021 | -9/Mines | Learned location of Zion (-6) 3223 | -9/Mines | Build established: Scavenger-Mutant 3590 | -9/Mines | Build established: Mutant 4040 | -9/Mines | Discovered new exit (range 5) 4159 | -9/Mines | Deemed a non-threat by the Exiles lab entrance 4162 | -9/Mines | Discovered new exit (range 5) 4171 | -9/Mines | Entered Exiles 4210 | -9/Exiles | Discovered new exit (range 15) 4268 | -9/Exiles | Met 8R-AWN 4333 | -9/Exiles | Met EX-HEX 4383 | -9/Exiles | Met EX-BIN 4402 | -9/Exiles | Met EX-DEC 4520 | -9/Exiles | Discovered new exit (range 14) 4842 | -9/Exiles | Visited The Gauntlet 5256 | -9/Exiles | Attacked by the Exiles 5257 | -9/Exiles | Core integrity fell below 50% 5286 | -9/Exiles | Destroyed 7 combat bots 5305 | -9/Exiles | Core integrity fell below 20% 5337 | -9/Exiles | Lost 4 parts (1p2n1u) 5338 | -9/Exiles | Destroyed by 8R-AWN with 8R-AWN's Boregun Last Messages --------------- 05297_ Penetrated by HV Slug. 05297_ Critical hit (Destroy). 05297_ Cld. Ion Engine destroyed. 05299_ Penetrated by HV Slug. 05299_ Lgt. Treads destroyed. 05302_ Penetrated by HV Slug. 05302_ Lgt. Treads destroyed. 05302_ HV Slug penetrates Wall. 05304_ Penetrated by HV Slug. 05306_ Hrd. Light Armor Plating destroyed. 05306_ Penetrated by HV Slug. 05315_ Dropped Hcp. Matter Pod. 05316_ Extracted 200 matter. 05317_ Penetrated by HV Slug. 05318_ The unstable cave ceiling collapses. 05321_ Penetrated by HV Slug. 05332_ System corrupted: Matter fused (-7). 05334_ Penetrated by HV Slug. 05338_ HV Slug penetrates Wall. 05338_ Penetrated by HV Slug. Map ----- +----------------------------------------------------+ | " """#????????????????????????????????? | | " """#????????????????????????????????? | | " """#????????????????????????????????? | | " """#????????????????????????????????? | | # """"????????????????????????????????? | | # """#????????????????????????????????? | | #" "X" """"????????????????????????????????? | | #" """ #????????????????????????????????? | | #" """""""""#????????????????????????????????? | | #" ###########????????????????????????????????? | | "" #??????????????????????????????????????????? | | " #??????????????????????????????????????????? | | " ##?????????????????????????????????????????? | | " ##???###########??????????????????????????? | | #####"""""""""##?????????????????????????? | | " """ """"##????????????????????????? | | "" " #????????????????????????? | | """#????????????????????????? | | "a"#???????????#####????????? | | " "##?????????##" #????????? | | ""###???????#" #????????? | | """" """#??????##" ##???????? | | ###""" "#????### ###?????? | | ??#####""" ##???# ####### | | ??????##""" ##?## #""""# | | ???????#"""" @ ### | | ??????##"" g ## * | | #??####"""" #### | | ####""" %% #?#"""""#### | | """" % % # ##?#######??### | | ######?????????????? | | ##??????????????????? | | " ##???????????????????? | | "" """ #???????????????????? | | ## ##""" " " ""#" #???????????????????? | | ## ######""" """# ##???????????????????? | | ?# #????###""""## # # #????????????????????? | | ## ####????######### # # #????????????????????? | | #! "!#????????????#####?###????????????????????? | | #" !#?????????????????????????????????????????? | | #" "#?????????????????????????????????????????? | | #!!""!"#?????????????????????????????????????????? | | ########?????????????????????????????????????????? | | ?????????????????????????????????????????????????? | | ?????????????????????????????????????????????????? | | ?????????????????????????????????????????????????? | | ?????????????????????????????????????????????????? | | ?????????????????????????????????????????????????? | | ?????????????????????????????????????????????????? | | ?????????????????????????????????????????????????? | +----------------------------------------------------+ Best States ------------- Heat Dissipation 50 Energy Generation 14 Energy Capacity 280 Matter Stores 300 Matter Capacity 300 Sight Range 16 Terrain Scan Density 10 Armor Coverage 225 Core Shielding 20 Utility Shielding 33 Evasion (%) 55 Targeting Accuracy 5 Recoil Reduction 3 Item Schematics ----------------- None Robot Schematics ------------------ None Fabricated ------------ Nothing Alien Tech Used ----------------- None Achievements -------------- None Challenges ------------ None Game ------ Seed LatentRestorationChronowheel Manual? 0 Play Time 00:33:39 Cumulative 116.8 hours Start 2023.05.13 @ 17:27:16 End 2023.05.13 @ 18:56:08 Sessions 1 Manual Loads 0 Difficulty Rogue Special Mode None Game No. 106 Rogue 58 Adventurer 22 Explorer 26 Win Type - Total 0 Types 0/0/0/0/0/0/0/0/0 Lore% 38 Gallery% 57 Achievement% 66 Wizard Run 0 Options --------- ASCII 0 Keyboard 0 Movement Mouse Keybinds 0 Fullscreen 0 Font 16/Smallcaps Map View 76x50 Tactical HUD 1 Map Filters NONE Filters BRIGHTNESS(125)|SATURATION(75)|LOW_CONTRAST(0,16,30)|SHIFT_HUE(130) Steam 1 RUN: da9f641b-00fb-452a-a24c-cb8c34fccab5